bitfinex-derivatives/quotes_BNBF0:USTF0_20250326
["timestamp","ask_amount","ask_price","bid_price","bid_amount"]
[1742996816403,1.21810041,629.15,628.71,1.18810563]
[1742996816599,1.21810041,629.14,628.71,1.18810563]
[1742996816801,1.21810041,629.13,628.71,1.18810563]
[1742996817100,1.21810041,629.12,628.71,1.18810563]
[1742996817304,1.21810041,629.11,628.71,1.18810563]
[1742996817604,2.1229401,629.1,628.71,1.18810563]
[1742996817805,1.21810041,629.09,628.71,1.18810563]
[1742996818000,1.21810041,629.08,628.71,1.18810563]
[1742996818200,1.21810041,629.07,628.71,1.18810563]
[1742996818405,1.21810041,629.06,628.71,1.18810563]
[1742996818605,1.21810041,629.05,628.71,1.18810563]
[1742996818807,0.27671096,629.14,628.71,1.18810563]
[1742996819106,2.12403169,629.13,628.71,1.18810563]
[1742996819406,1.21882367,629.12,628.55,1.18810563]
[1742996819605,1.21882367,629.11,628.56,0.262225]
[1742996819808,1.21882367,629.1,628.56,0.262225]
[1742996820009,1.21882367,629.09,628.56,0.262225]
[1742996820210,1.21882367,629.08,628.56,0.262225]
[1742996820505,1.21882367,629.07,628.56,0.262225]
[1742996820706,1.21882367,629.06,628.56,0.262225]
[1742996820908,1.21882367,629.05,628.56,0.262225]
[1742996821111,1.21882367,629.04,628.57,0.26224044]
[1742996821310,1.21882367,629.03,628.58,0.26224044]
[1742996821510,1.21937425,629.02,628.59,0.26224044]
[1742996821708,1.21937425,629.01,628.55,1.18810563]
[1742996821906,0.90520802,629.03,628.64,1.18810563]
[1742996822212,1.21910627,629.02,628.64,1.18810563]
[1742996822511,2.12465371,629.01,628.64,1.18810563]
[1742996822812,1.21910627,629.0,628.64,1.18810563]
[1742996823112,1.21910627,628.99,628.64,1.18810563]
[1742996823411,1.21941235,628.98,628.64,1.18810563]
[1742996823609,0.602,629.04,628.64,1.18810563]
[1742996823806,1.21941263,629.03,628.64,1.18810563]
[1742996824010,1.21941263,629.02,628.64,1.18810563]
[1742996824212,1.21941263,629.01,628.64,1.18810563]
[1742996824412,1.21941263,629.0,628.64,1.18810563]
[1742996824613,1.21941263,628.99,628.53,1.18810563]
[1742996824813,1.21941263,628.98,628.53,1.18810563]
[1742996825013,1.3336626,629.0,628.53,1.18810563]
[1742996825208,1.21930338,628.99,628.53,1.18810563]
[1742996825411,1.21930338,628.98,628.53,1.18810563]
[1742996825615,1.21930338,628.97,628.53,1.18810563]
[1742996825810,0.428,629.0,628.53,1.18810563]
[1742996826011,1.21906685,628.99,628.53,1.18810563]
[1742996826209,2.12447806,628.98,628.53,1.18810563]
[1742996826414,1.21906685,628.97,628.53,1.18810563]
[1742996826606,1.21906685,628.96,628.53,1.18810563]
[1742996826812,1.21906685,628.95,628.45,1.18810563]
[1742996827113,1.21906685,628.94,628.45,1.18810563]
[1742996827315,1.21906685,628.93,628.45,1.18810563]
[1742996827510,0.90525706,628.94,628.45,1.18810563]
[1742996827511,1.21906685,628.92,628.45,1.18810563]
[1742996827710,2.12432391,628.91,628.45,1.18810563]
[1742996827915,1.21906685,628.9,628.45,1.18810563]
[1742996828109,1.21906685,628.89,628.45,1.18810563]
[1742996828312,0.90525706,628.91,628.45,1.18810563]
[1742996828512,1.21778091,628.9,628.45,1.18810563]
[1742996828715,1.21777366,628.89,628.45,1.18810563]
[1742996828916,0.90525706,628.9,628.45,1.18810563]
[1742996829115,1.21777957,628.89,628.45,1.18810563]
[1742996829416,0.90525706,628.89,628.45,1.18810563]
[1742996829613,1.21723587,628.88,628.45,1.18810563]
[1742996829815,1.21721077,628.87,628.45,1.18810563]
[1742996830017,1.21720123,628.86,628.23,1.18810563]
[1742996830314,0.428,629.0,628.23,1.18810563]
[1742996830514,1.21672816,628.99,628.23,1.18810563]
[1742996830815,2.12054686,628.98,628.23,1.18810563]
[1742996831010,1.21676886,628.97,628.23,1.18810563]
[1742996831213,1.21676886,628.96,628.23,1.18810563]
[1742996831410,1.21676886,628.95,628.23,1.18810563]
[1742996831609,1.21676886,628.94,628.23,1.18810563]
[1742996831812,1.21676886,628.93,628.23,1.18810563]
[1742996832013,1.21676886,628.92,628.23,1.18810563]
[1742996832211,1.21676886,628.91,628.23,1.18810563]
[1742996832415,1.21676886,628.9,628.24,0.26243817]
[1742996832617,1.21676886,628.89,628.24,0.26243817]
[1742996832817,1.21598049,628.88,628.06,0.26243817]
[1742996833014,1.21597582,628.87,628.07,0.26243817]
[1742996833215,0.428,629.0,628.01,0.26243817]
[1742996833514,1.21558265,628.99,628.02,0.58089936]
[1742996833716,1.21558265,628.98,628.03,0.26243817]
[1742996833911,1.21558265,628.97,628.03,0.26243817]
[1742996834114,2.11850496,628.96,628.03,0.53927019]
[1742996834314,1.21558265,628.95,628.04,0.26243817]
[1742996834518,1.21558265,628.94,628.04,0.26243817]
[1742996834816,1.21558265,628.93,628.08,1.18810563]
[1742996835009,0.90292231,628.94,628.09,0.26243817]
[1742996835010,1.21558265,628.92,628.09,0.26243817]
[1742996835216,1.21558265,628.91,628.08,1.18810563]
[1742996835411,1.21513423,628.9,628.08,1.18810563]
[1742996835614,1.21513423,628.89,628.08,1.18810563]
[1742996835917,1.21513423,628.88,628.08,1.18810563]
[1742996836120,1.21513423,628.87,628.08,1.18810563]
[1742996836317,1.21513423,628.86,628.08,1.18810563]
[1742996836519,1.21513423,628.85,628.08,1.18810563]
[1742996836821,2.11736218,628.84,628.08,1.18810563]
[1742996837019,1.21491779,628.83,628.08,1.18810563]
[1742996837220,0.90244439,628.83,628.08,1.18810563]
[1742996837421,0.90244439,628.83,628.05,0.31844598]
[1742996837817,2.11728565,628.82,628.05,0.31844598]
[1742996838014,0.90244439,628.82,628.05,0.31844598]
[1742996838319,0.90244439,628.81,628.05,0.31844598]
[1742996838715,0.488,628.94,628.05,0.31844598]
[1742996838921,1.21473121,628.93,628.05,0.31844598]
[1742996839119,1.21473121,628.92,628.05,0.31844598]
[1742996839320,1.21473121,628.91,628.05,0.31844598]
[1742996839522,1.21473121,628.9,628.05,0.31844598]
[1742996839720,1.21473121,628.89,628.05,0.31844598]
[1742996839920,0.9025523,628.9,628.05,0.31844598]
[1742996839921,1.21473121,628.88,628.05,0.31844598]
[1742996840222,1.21473121,628.87,628.06,0.2623737]
[1742996840521,1.21473121,628.86,628.06,0.2623737]
[1742996840723,1.21473121,628.85,628.06,0.2623737]
[1742996840921,1.21473121,628.84,628.06,0.2623737]
[1742996841118,1.21473121,628.83,628.06,0.2623737]
[1742996841322,2.11728351,628.82,628.06,0.2623737]
[1742996841522,0.9025523,628.82,628.06,0.2623737]
[1742996842018,0.488,628.94,628.06,0.2623737]
[1742996842226,1.2145417,628.93,628.06,0.2623737]
[1742996842418,1.2145417,628.92,628.06,0.2623737]
[1742996842616,1.2145417,628.91,628.06,0.2623737]
[1742996842822,1.2145417,628.9,628.06,0.2623737]
[1742996843022,1.2145417,628.89,628.06,0.2623737]
[1742996843222,1.2145417,628.88,628.06,0.2623737]
[1742996843421,1.2145417,628.87,628.06,0.2623737]
[1742996843619,1.2145417,628.86,628.06,0.2623737]
[1742996843827,1.2145417,628.85,628.06,0.2623737]
[1742996844028,0.9024798,628.87,628.06,0.2623737]
[1742996844029,1.2145417,628.84,628.06,0.2623737]
[1742996844229,1.21438557,628.83,628.06,0.2623737]
[1742996844429,0.9024798,628.87,628.06,0.2623737]
[1742996844625,1.21426243,628.86,628.06,0.2623737]
[1742996844929,1.21426243,628.85,628.06,0.2623737]
[1742996845128,0.917,628.94,628.06,0.2623737]
[1742996845431,2.11667988,628.93,628.06,0.2623737]
[1742996845632,1.21439298,628.92,628.06,0.2623737]
[1742996845835,1.21439298,628.91,628.06,0.2623737]
[1742996846035,1.21420731,628.9,628.06,0.2623737]
[1742996846229,1.21428978,628.89,628.06,0.2623737]
[1742996846429,1.697,628.94,628.06,0.2623737]
[1742996846734,2.11650664,628.93,628.06,0.2623737]
[1742996846930,1.2142615,628.92,628.06,0.2623737]
[1742996847131,0.90224514,628.93,628.07,0.31843584]
[1742996847328,0.90224514,628.91,628.08,0.2623737]
[1742996847532,0.90224514,628.91,628.31,1.18810563]
[1742996847733,1.697,628.94,628.31,1.18810563]
[1742996849645,1.21460838,628.93,628.31,1.18810563]
[1742996849837,1.697,628.94,628.09,0.3184257]
[1742996849838,1.21460838,628.92,628.15,1.18810563]
[1742996850035,1.209,628.94,628.15,1.18810563]
[1742996851036,0.90231216,628.93,628.17,1.18810563]
[1742996851836,1.209,628.94,628.18,0.26241318]
[1742996853441,1.209,628.94,628.35,1.18810563]
[1742996853641,1.697,628.94,628.35,1.18810563]
[1742996855137,1.697,628.94,628.34,1.18810563]
[1742996856642,1.697,628.94,628.35,0.26226267]
[1742996857843,1.697,628.94,628.35,1.4503683]
[1742996858045,1.697,628.94,628.36,0.26219855]
[1742996859744,1.697,628.94,628.37,0.26232413]
[1742996860041,1.697,628.94,628.38,0.26232413]
[1742996860247,1.697,628.94,628.54,1.18810563]
[1742996862646,1.697,628.94,628.52,1.18810563]
[1742996862846,1.697,628.94,628.53,0.2623447]
[1742996863045,1.697,628.94,628.52,1.18810563]
[1742996863642,1.697,628.94,628.53,0.26235798]
[1742996864147,1.697,628.94,628.52,1.18810563]
[1742996864845,1.697,628.94,628.5,1.18810563]
[1742996865046,1.697,628.94,628.51,0.26235922]
[1742996866648,1.697,628.94,628.53,1.18810563]
[1742996866948,1.697,628.94,628.54,0.26235922]
[1742996869352,1.697,628.94,628.52,0.26235922]
[1742996869653,1.697,628.94,628.51,1.18810563]
[1742996869654,1.697,628.94,628.53,0.26235922]
[1742996869852,1.697,628.94,628.51,1.18810563]
[1742996869853,1.697,628.94,628.52,0.26235922]
[1742996870155,1.697,628.94,628.53,0.26235922]
[1742996870350,1.697,628.94,628.51,1.18810563]
[1742996870548,1.21910492,628.93,628.51,1.18810563]
[1742996870750,2.12458068,628.92,628.51,1.18810563]
[1742996870950,1.21910492,628.91,628.51,1.18810563]
[1742996871151,0.90547576,628.91,628.51,1.18810563]
[1742996871351,1.21955957,628.9,628.51,1.18810563]
[1742996871553,0.90547576,628.89,628.51,1.18810563]
[1742996872257,0.488,628.94,628.51,1.18810563]
[1742996872456,1.21969862,628.93,628.51,1.18810563]
[1742996872757,1.21969862,628.92,628.51,1.18810563]
[1742996872954,1.21969862,628.91,628.51,1.18810563]
[1742996873155,1.21969862,628.9,628.51,1.18810563]
[1742996873356,2.12564251,628.89,628.3,1.18810563]
[1742996873655,0.90594389,628.89,628.31,0.26238878]
[1742996873857,0.488,628.94,628.31,0.26238878]
[1742996874160,0.679,628.88,628.31,0.26238878]
[1742996874764,0.429,628.87,628.31,0.26238878]
[1742996875761,0.429,628.87,628.32,1.18810563]
[1742996876060,0.429,628.87,628.33,0.26238878]
[1742996877863,0.429,628.87,628.48,1.18810563]
[1742996878168,0.429,628.87,628.49,0.26238878]
[1742996878558,0.429,628.87,628.48,1.18810563]
[1742996878962,0.429,628.87,628.49,0.262334]
[1742996879662,0.429,628.87,628.54,1.18810563]
[1742996881363,0.429,628.87,628.57,1.18810563]
[1742996883860,0.488,628.86,628.57,1.18810563]
[1742996884758,0.488,628.86,628.52,1.18810563]
[1742996884959,0.488,628.86,628.53,0.26233097]
[1742996886663,0.488,628.86,628.54,0.26230666]
[1742996886859,0.488,628.86,628.53,0.26230666]
[1742996887057,0.488,628.86,628.54,0.26230666]
[1742996887261,0.488,628.86,628.53,0.26230666]
[1742996887460,0.488,628.86,628.54,0.26230666]
[1742996887658,0.488,628.86,628.55,0.26230666]
[1742996887862,0.488,628.86,628.56,0.26230666]
[1742996888066,0.488,628.86,628.57,0.26230666]
[1742996888265,0.488,628.86,628.58,0.26232555]
[1742996888467,0.488,628.86,628.65,1.18810563]
[1742996888667,0.488,628.86,628.66,0.26232448]
[1742996888867,0.488,628.86,628.65,1.18810563]
[1742996890774,0.488,628.86,628.51,1.18810563]
[1742996892061,0.429,628.85,628.51,1.18810563]
[1742996895369,0.429,628.85,628.48,1.18810563]
[1742996895562,0.429,628.85,628.49,0.26240595]
[1742996895768,0.429,628.85,628.48,1.18810563]
[1742996896068,1.22017653,628.84,628.49,0.26240787]
[1742996896272,1.22017653,628.83,628.49,0.26240787]
[1742996896465,1.22017653,628.82,628.49,0.26240787]
[1742996896768,2.12650099,628.81,628.49,0.26240787]
[1742996897068,1.22017653,628.8,628.49,0.26240787]
[1742996897269,1.22017653,628.79,628.49,0.26240787]
[1742996897569,1.22017653,628.78,628.48,1.18810563]
[1742996897766,0.429,628.85,628.48,1.18810563]
[1742996897967,1.22027443,628.84,628.52,1.18810563]
[1742996898168,1.22027443,628.83,628.52,1.18810563]
[1742996898468,1.22027443,628.82,628.52,1.18810563]
[1742996898662,1.22027443,628.81,628.52,1.18810563]
[1742996898866,1.22027443,628.8,628.52,1.18810563]
[1742996899065,1.22027443,628.79,628.52,1.18810563]
[1742996899265,2.12664265,628.78,628.52,1.18810563]
[1742996899468,1.22027443,628.77,628.52,1.18810563]
[1742996899668,1.22027443,628.76,628.52,1.18810563]
[1742996899867,1.22030667,628.75,628.52,1.18810563]
[1742996900062,1.22030667,628.74,628.52,1.18810563]
[1742996900269,0.429,628.85,628.52,1.18810563]
[1742996900465,2.12687516,628.84,628.39,1.18810563]
[1742996900768,2.12687516,628.83,628.39,1.18810563]
[1742996900969,1.2203975,628.82,628.39,1.18810563]
[1742996901171,2.12687516,628.81,628.39,1.18810563]
[1742996901371,1.2203975,628.8,628.39,1.18810563]
[1742996901569,1.2203975,628.79,628.39,1.18810563]
[1742996901769,1.22042463,628.78,628.39,1.18810563]
[1742996901965,2.12690229,628.77,628.39,1.18810563]
[1742996902170,1.22042463,628.76,628.39,1.18810563]
[1742996902371,1.22042463,628.75,628.39,1.18810563]
[1742996902572,1.22042463,628.74,628.39,1.18810563]
[1742996902873,1.22042463,628.73,628.39,1.18810563]
[1742996903073,0.488,628.73,628.39,1.18810563]
[1742996903874,0.488,628.73,628.4,0.26245689]
[1742996904073,0.488,628.73,628.36,0.26245689]
[1742996904267,0.488,628.73,628.35,1.18810563]
[1742996904470,0.488,628.73,628.36,0.26245634]
[1742996907674,0.488,628.73,628.35,1.18810563]
[1742996908073,0.488,628.73,628.34,1.18810563]
[1742996911181,0.488,628.73,628.22,1.18810563]
[1742996911380,0.488,628.73,628.23,0.26243788]
[1742996911681,0.488,628.73,628.22,1.18810563]
[1742996912678,0.488,628.73,628.19,0.31837501]
[1742996912879,0.488,628.73,628.2,0.26245021]
[1742996914784,0.488,628.73,628.2,1.45055584]
[1742996915083,0.488,628.73,628.21,0.26245021]
[1742996916379,0.488,628.73,628.19,1.50648064]
[1742996916380,0.488,628.73,628.22,0.26245021]
[1742996916584,0.488,628.73,628.23,0.26245021]
[1742996916776,0.972,628.72,628.2,0.26245021]
[1742996916981,0.972,628.72,628.21,0.26245021]
[1742996917185,0.972,628.72,628.22,0.26245021]
[1742996917478,0.972,628.72,628.23,0.26245021]
[1742996917683,0.972,628.72,628.24,0.26245021]
[1742996917886,0.972,628.72,628.25,0.26245021]
[1742996918084,0.972,628.72,628.2,0.26245021]
[1742996918279,0.972,628.72,628.21,0.26245021]
[1742996918484,0.972,628.72,628.22,0.26245021]
[1742996918784,0.972,628.72,628.27,1.18810563]
[1742996918986,0.972,628.72,628.28,0.26245021]
[1742996920883,0.972,628.72,628.29,0.2624385]
[1742996921079,0.972,628.72,628.3,0.2624385]
[1742996921284,0.972,628.72,628.27,1.18810563]
[1742996921484,0.972,628.72,628.28,0.26243389]
[1742996922083,0.429,628.71,628.28,0.26243389]
[1742996922286,0.429,628.71,628.25,0.26243389]
[1742996922487,0.429,628.71,628.26,0.26243389]
[1742996922686,0.429,628.71,628.24,1.18810563]
[1742996923986,0.429,628.71,628.25,0.26241503]
[1742996924286,0.429,628.71,628.26,1.45051443]
[1742996924487,0.429,628.71,628.27,0.2624088]
[1742996925783,0.429,628.71,628.26,1.18810563]
[1742996925989,0.429,628.71,628.27,0.26240151]
[1742996926186,0.429,628.71,628.38,1.18810563]
[1742996926384,0.429,628.71,628.39,0.26240151]
[1742996927590,0.429,628.71,628.4,0.26239373]
[1742996927784,0.429,628.71,628.39,0.26239373]
[1742996927984,0.429,628.71,628.4,0.26239373]
[1742996928187,0.429,628.71,628.39,0.26239373]
[1742996928391,0.429,628.71,628.4,0.26239373]
[1742996928686,0.429,628.71,628.41,0.26239373]
[1742996928890,0.429,628.71,628.39,0.26239373]
[1742996929090,0.429,628.71,628.4,0.26239329]
[1742996929291,0.429,628.71,628.41,0.26239329]
[1742996929491,0.429,628.71,628.53,1.18810563]
[1742996931696,0.429,628.71,628.55,1.18810563]
[1742996934602,0.429,628.71,628.52,1.18810563]
[1742996937002,0.429,628.71,628.53,1.18810563]
[1742996938707,0.429,628.71,628.51,1.18810563]
[1742996940105,0.972,628.72,628.51,1.18810563]
[1742996941107,0.972,628.72,628.52,1.18810563]
[1742996942913,0.488,628.78,628.52,1.18810563]
[1742996943211,0.429,628.75,628.52,1.18810563]
[1742996943805,0.429,628.75,628.47,1.18810563]
[1742996945808,0.776,628.74,628.47,1.18810563]
[1742996946215,0.776,628.74,628.48,0.26239131]
[1742996946819,0.776,628.74,628.47,1.18810563]
[1742996949716,0.776,628.74,628.19,0.31837501]
[1742996949717,0.776,628.74,628.51,1.18810563]
[1742996951913,0.776,628.74,628.45,1.18810563]
[1742996953016,2.13135918,628.73,628.45,1.18810563]
[1742996953213,0.90839794,628.72,628.45,1.18810563]
[1742996953811,2.131395,628.71,628.45,1.18810563]
[1742996954015,0.90839794,628.71,628.45,1.18810563]
[1742996954512,0.90839794,628.7,628.45,1.18810563]
[1742996954717,0.776,628.74,628.45,1.18810563]
[1742996955018,1.2231383,628.73,628.45,1.18810563]
[1742996955216,0.90851158,628.73,628.44,1.18810563]
[1742996956117,0.776,628.74,628.44,1.18810563]
[1742996957313,0.776,628.74,628.45,0.26241214]
[1742996958221,0.776,628.74,628.51,1.18810563]
[1742996959518,1.264,628.74,628.51,1.18810563]
[1742996960121,1.264,628.74,628.56,1.18810563]
[1742996961620,1.264,628.74,628.55,1.18810563]
[1742996964218,1.264,628.74,628.62,1.18810563]
[1742996966618,1.264,628.74,628.66,1.18810563]
[1742996970525,1.264,628.74,628.7,1.18810563]
[1742996971822,0.488,628.74,628.69,1.18810563]
[1742996974228,0.9088474,628.73,628.69,1.18810563]
[1742996974630,0.9088474,628.72,628.69,1.18810563]
[1742996975227,0.9088474,628.71,628.69,1.18810563]
[1742996975832,0.488,628.74,628.69,1.18810563]
[1742996977332,0.488,628.74,628.14,1.18810563]
[1742996979532,0.488,628.74,628.09,1.18810563]
[1742996980733,0.488,628.74,628.2,0.26246928]
[1742996982737,0.488,628.74,628.08,1.18810563]
[1742996984139,0.488,628.74,628.21,1.18810563]
[1742996984639,0.428,628.85,628.21,1.18810563]
[1742996985839,0.428,628.85,628.16,1.18810563]
[1742996986640,0.90875865,628.73,628.16,1.18810563]
[1742996987436,0.90875865,628.72,628.16,1.18810563]
[1742996987635,2.13009465,628.71,628.16,1.18810563]
[1742996987840,1.221336,628.7,628.16,1.18810563]
[1742996988041,1.221336,628.69,628.16,1.18810563]
[1742996988242,1.221336,628.68,628.16,1.18810563]
[1742996988441,1.221336,628.67,628.16,1.18810563]
[1742996988643,1.221336,628.66,628.16,1.18810563]
[1742996988842,1.221336,628.65,628.05,1.18810563]
[1742996989041,1.221336,628.64,628.05,1.18810563]
[1742996989243,1.221336,628.63,628.05,1.18810563]
[1742996989445,1.221336,628.62,628.05,1.18810563]
[1742996989745,0.90875865,628.61,628.05,1.18810563]
[1742996990543,0.487,628.71,628.05,1.18810563]
[1742996990744,1.22084837,628.7,628.05,1.18810563]
[1742996990937,1.22084837,628.69,628.05,1.18810563]
[1742996991143,1.22084837,628.68,628.05,1.18810563]
[1742996991438,1.22084837,628.67,628.05,1.18810563]
[1742996991638,1.22084837,628.66,628.05,1.18810563]
[1742996991844,1.22048432,628.65,628.05,1.18810563]
[1742996992044,1.22048432,628.64,628.05,1.18810563]
[1742996992344,1.22048432,628.63,628.05,1.18810563]
[1742996992546,1.22048432,628.62,628.05,1.18810563]
[1742996992839,0.90684575,628.61,628.05,1.18810563]
[1742996993045,0.90684575,628.61,628.02,1.18810563]
[1742996993046,1.33484575,628.61,628.02,1.18810563]
[1742996993547,0.428,628.61,628.02,1.18810563]
[1742996995246,0.428,628.61,628.01,1.18810563]
[1742996995546,1.21985677,628.6,628.02,0.26252639]
[1742996995744,0.428,628.61,628.02,0.26252639]
[1742996996048,2.12600416,628.6,628.02,0.26252639]
[1742996996243,1.21987154,628.59,628.02,0.26252639]
[1742996996445,0.90614403,628.6,628.02,0.26252639]
[1742996996639,0.90614403,628.6,628.01,1.18810563]
[1742996996844,0.90614403,628.6,628.02,0.26252387]
[1742996997143,0.428,628.61,628.01,1.18810563]
[1742996997445,0.428,628.61,628.02,0.26252391]
[1742996997745,1.21953246,628.6,628.02,0.26252391]
[1742996997941,0.9059064,628.6,628.02,0.26252391]
[1742996998441,0.428,628.61,628.05,1.18810563]
[1742996998647,0.428,628.61,628.06,0.26252391]
[1742996999445,1.21958227,628.6,628.06,0.26252391]
[1742996999640,0.428,628.61,628.06,0.26252391]
[1742996999839,1.21957652,628.6,628.06,0.26252391]
[1742997000043,0.428,628.61,628.06,0.26252391]
[1742997000243,0.428,628.61,628.08,1.18810563]
[1742997000541,0.428,628.61,628.09,0.26252391]
[1742997000746,1.21960811,628.6,628.09,0.26252391]
[1742997000946,1.21960811,628.59,628.09,0.26252391]
[1742997001148,0.428,628.61,628.09,0.26252391]
[1742997001347,1.21957786,628.6,628.09,0.26252391]
[1742997001541,1.21957786,628.59,628.1,0.26252871]
[1742997001746,0.428,628.61,628.09,0.26252871]
[1742997001949,0.715,628.58,628.1,0.26252871]
[1742997002146,0.715,628.58,628.11,0.26252871]
[1742997002548,0.715,628.58,628.12,0.26252871]
[1742997002751,0.715,628.58,628.09,1.45063434]
[1742997002941,0.715,628.58,628.1,0.26252871]
[1742997003249,0.715,628.58,628.11,0.26252855]
[1742997003548,0.715,628.58,628.12,0.26252855]
[1742997003744,0.715,628.58,628.1,0.26252855]
[1742997003948,0.715,628.58,628.11,0.26252855]
[1742997004142,0.715,628.58,628.12,0.26252855]
[1742997004343,0.715,628.58,628.13,0.26252855]
[1742997004548,0.715,628.58,628.1,0.26252855]
[1742997004748,0.715,628.58,628.09,1.18810563]
[1742997004749,0.715,628.58,628.11,0.26253899]
[1742997005053,0.715,628.58,628.13,1.18810563]
[1742997007151,0.715,628.58,628.09,1.18810563]
[1742997007348,0.715,628.58,628.1,0.26253568]
[1742997007951,1.21928488,628.57,628.1,0.26253568]
[1742997008148,1.21924546,628.56,628.09,1.18810563]
[1742997008356,1.21924546,628.55,628.09,1.18810563]
[1742997008553,1.21924546,628.54,628.09,1.18810563]
[1742997008755,1.21924546,628.53,628.09,1.18810563]
[1742997008951,2.1249179,628.52,628.09,1.18810563]
[1742997009149,1.21924546,628.51,628.09,1.18810563]
[1742997009355,0.715,628.58,628.09,1.18810563]
[1742997009654,1.21872966,628.57,628.09,1.18810563]
[1742997009857,1.21872966,628.56,628.09,1.18810563]
[1742997010057,1.21872966,628.55,628.09,1.18810563]
[1742997010256,1.21872966,628.54,628.09,1.18810563]
[1742997010555,1.21872966,628.53,628.05,1.18810563]
[1742997010854,1.21872966,628.52,628.05,1.18810563]
[1742997011057,1.21872966,628.51,628.06,0.26258457]
[1742997011258,1.21872966,628.5,628.06,0.26258457]
[1742997011454,0.715,628.58,628.06,0.26258457]
[1742997011652,1.21830402,628.57,628.06,0.26258457]
[1742997011857,1.21830402,628.56,628.06,0.26258457]
[1742997012057,1.21830402,628.55,628.05,1.18810563]
[1742997012257,1.21830402,628.54,628.05,1.18810563]
[1742997012460,1.21830402,628.53,628.05,1.18810563]
[1742997012754,2.12334146,628.52,628.05,1.18810563]
[1742997012959,1.21830402,628.51,628.12,1.18810563]
[1742997013159,1.21830402,628.5,628.12,1.18810563]
[1742997013359,1.21830402,628.49,628.12,1.18810563]
[1742997013552,1.21830402,628.48,628.12,1.18810563]
[1742997013754,1.21830402,628.47,628.12,1.18810563]
[1742997013953,1.21830402,628.46,628.12,1.18810563]
[1742997014260,1.21830402,628.45,628.12,1.18810563]
[1742997014461,2.12334146,628.44,628.12,1.18810563]
[1742997014664,1.21830402,628.43,628.12,1.18810563]
[1742997014857,1.21830402,628.42,628.12,1.18810563]
[1742997015059,1.21830402,628.41,628.12,1.18810563]
[1742997015261,1.21830402,628.4,628.12,1.18810563]
[1742997015457,1.21830402,628.4,627.61,1.18810563]
[1742997015458,1.21395464,628.39,627.61,1.18810563]
[1742997015663,1.21395464,628.38,627.61,1.18810563]
[1742997015865,2.11899208,628.37,627.61,1.18810563]
[1742997016059,1.21395464,628.36,627.61,1.18810563]
[1742997016266,2.11899208,628.35,627.61,1.18810563]
[1742997016465,1.21395464,628.34,627.61,1.18810563]
[1742997016666,1.21395464,628.33,627.61,1.18810563]
[1742997016862,0.27708551,628.37,627.61,1.18810563]
[1742997016863,2.11899208,628.32,627.61,1.18810563]
[1742997017064,1.21395464,628.31,627.61,1.18810563]
[1742997017271,1.21395464,628.3,627.61,1.18810563]
[1742997017469,1.21395464,628.29,627.61,1.18810563]
[1742997017667,1.21395464,628.28,627.61,1.18810563]
[1742997017868,1.21395464,628.27,627.61,1.18810563]
[1742997018068,1.21395464,628.27,627.39,0.27708551]
[1742997018069,0.90503744,628.28,627.39,0.27708551]
[1742997018269,1.21287126,628.27,627.4,0.58150682]
[1742997018469,0.90503744,628.27,627.41,0.58150173]
[1742997018670,0.90503744,628.27,627.42,0.58149665]
[1742997018969,0.90503744,628.26,627.43,0.58149157]
[1742997019169,0.90503744,628.26,627.44,0.58148649]
[1742997019371,1.21260604,628.39,627.45,0.58148141]
[1742997019568,1.21260604,628.38,627.46,0.58147633]
[1742997019768,1.21260604,628.37,627.47,0.58147125]
[1742997019970,1.21260604,628.36,627.48,0.26273092]
[1742997020268,1.21260604,628.35,627.48,0.26273092]
[1742997020470,1.21260604,628.34,627.49,0.26269968]
[1742997020663,0.90061961,628.34,627.48,0.26269968]
[1742997020865,0.90061961,628.34,627.49,0.26269968]
[1742997021063,0.90061961,628.34,627.48,0.26269968]
[1742997021266,0.428,628.4,627.49,0.26269968]
[1742997021467,1.21166554,628.39,627.5,0.26269968]
[1742997021671,1.21166554,628.38,627.51,0.31872002]
[1742997021871,1.21166554,628.37,627.52,0.26269968]
[1742997022070,1.21177796,628.36,627.53,0.2626885]
[1742997022271,0.90026766,628.36,627.52,0.2626885]
[1742997022472,0.90026766,628.36,627.53,0.58139836]
[1742997022669,0.90026766,628.36,627.54,0.58139328]
[1742997022869,0.428,628.4,627.55,0.5813882]
[1742997023073,0.428,628.4,627.42,0.2770844]
[1742997023074,0.428,628.4,627.56,0.58138312]
[1742997023374,0.428,628.4,627.57,0.2626885]
[1742997023575,0.428,628.4,627.56,0.31869462]
[1742997023771,0.90027477,628.39,627.57,0.26267251]